bitfinex/quotes_ETHUSD_20241024
["timestamp","ask_amount","ask_price","bid_price","bid_amount"]
[1729813073940,3.94742,2533.3,2533.0,0.82737926]
[1729813074146,0.07775391,2533.2,2533.0,0.82737926]
[1729813074448,3.94742,2533.3,2533.0,0.82737926]
[1729813074604,0.07772883,2533.1,2533.0,0.82737926]
[1729813074807,3.94742,2533.3,2533.0,0.82737926]
[1729813075007,0.07774174,2533.1,2533.0,0.82737926]
[1729813075309,0.07773794,2533.1,2533.0,0.82737926]
[1729813075612,5.56691467,2533.3,2532.9,0.8231]
[1729813075613,3.94742,2533.3,2532.9,1.65047926]
[1729813075941,3.94742,2533.3,2533.0,0.82737926]
[1729813076137,0.0777608,2533.2,2533.0,0.82737926]
[1729813076338,5.56691467,2533.3,2533.0,0.82737926]
[1729813076555,0.0777608,2533.2,2533.0,0.82737926]
[1729813076958,3.94742,2533.3,2533.0,0.82737926]
[1729813077251,0.0777608,2533.2,2533.0,0.82737926]
[1729813077665,3.94742,2533.3,2533.0,0.82737926]
[1729813078257,0.0777608,2533.2,2533.0,0.82737926]
[1729813078556,3.94742,2533.3,2533.0,0.82737926]
[1729813078863,0.07776303,2533.2,2533.0,0.82737926]
[1729813079176,3.94742,2533.3,2533.0,0.82737926]
[1729813079455,0.07773794,2533.1,2533.0,0.82737926]
[1729813079662,3.94742,2533.3,2533.0,0.82737926]
[1729813079827,0.0777426,2533.1,2533.0,0.82737926]
[1729813080019,5.56691467,2533.3,2533.0,0.82737926]
[1729813080282,0.0777426,2533.1,2533.0,0.82737926]
[1729813080556,0.0777426,2533.1,2533.0,1.83935912]
[1729813080734,3.94742,2533.3,2533.0,1.83935912]
[1729813080931,0.07776938,2533.2,2533.0,0.82737926]
[1729813081151,3.94742,2533.3,2533.0,0.82737926]
[1729813081465,0.07777871,2533.2,2533.0,0.82737926]
[1729813081837,3.94742,2533.3,2533.0,0.82737926]
[1729813082037,0.07775363,2533.1,2533.0,0.82737926]
[1729813082550,3.94742,2533.3,2533.0,0.82737926]
[1729813082724,0.07777871,2533.2,2533.0,0.82737926]
[1729813082924,3.94742,2533.3,2533.0,0.82737926]
[1729813083267,0.07505414,2533.2,2533.0,0.82737926]
[1729813083563,3.94742,2533.3,2533.0,0.82737926]
[1729813083725,0.07505414,2533.2,2533.0,0.82737926]
[1729813083920,3.94742,2533.3,2533.0,0.82737926]
[1729813084154,0.07505414,2533.2,2533.0,0.82737926]
[1729813084374,3.94742,2533.3,2533.0,0.82737926]
[1729813084586,0.07502906,2533.1,2533.0,0.82737926]
[1729813084763,3.94742,2533.3,2533.0,0.82737926]
[1729813084967,0.07505414,2533.2,2533.0,0.82737926]
[1729813085590,0.07502906,2533.1,2533.0,0.82737926]
[1729813085955,3.94742,2533.3,2533.0,0.82737926]
[1729813086258,0.07503506,2533.2,2533.0,0.82737926]
[1729813086586,3.94742,2533.3,2533.0,0.82737926]
[1729813086798,0.07500998,2533.1,2533.0,4.77524926]
[1729813086967,0.7654,2533.4,2533.0,6.60616254]
[1729813087161,9.51390467,2533.5,2533.1,2.44725729]
[1729813087162,0.07506014,2533.3,2533.1,2.44725729]
[1729813087478,3.9472,2533.5,2533.2,0.7734]
[1729813087874,3.9472,2533.5,2533.2,1.60116262]
[1729813089213,3.9472,2533.5,2533.2,0.82776262]
[1729813090116,7.8944,2533.5,2533.2,0.82776262]
[1729813090279,3.9472,2533.5,2533.2,0.82776262]
[1729813090685,6.36825467,2533.6,2533.2,0.82776262]
[1729813091195,3.94712,2533.5,2533.1,3.22065729]
[1729813092287,3.94712,2533.5,2533.2,0.82776262]
[1729813092626,0.8018,2534.0,2533.4,6.39439729]
[1729813092782,3.9465,2533.9,2533.5,2.39289467]
[1729813092980,3.9465,2533.9,2533.5,1.60116262]
[1729813093172,3.9465,2533.9,2533.5,3.22065729]
[1729813093373,3.9465,2533.9,2533.5,7.16774729]
[1729813093609,6.36763467,2534.0,2533.5,6.78412241]
[1729813093784,4.74814,2534.0,2533.5,8.40361708]
[1729813093990,6.36763467,2534.0,2533.5,8.40361708]
[1729813094578,3.94634,2534.0,2533.5,8.40361708]
[1729813094784,3.94634,2534.0,2533.5,12.35061708]
[1729813095016,3.9462,2534.1,2533.7,1.61949467]
[1729813095308,5.56569467,2534.1,2533.6,6.80149638]
[1729813095717,5.56569467,2534.1,2533.6,1.23506171]
[1729813095907,5.56592467,2534.0,2533.5,5.54817262]
[1729813096292,5.56592467,2534.0,2533.5,7.16766729]
[1729813097099,1.61949467,2534.0,2533.5,7.16766729]
[1729813097310,3.94649,2533.9,2533.5,5.54817262]
[1729813097509,3.94649,2533.9,2533.5,4.72041]
[1729813097823,3.94649,2533.9,2533.6,0.71676673]
[1729813099416,3.94671,2533.8,2533.6,0.71676673]
[1729813099586,3.94671,2533.8,2533.5,0.7734]
[1729813101080,0.07290481,2533.7,2533.5,0.7734]
[1729813101615,0.07287974,2533.6,2533.5,0.7734]
[1729813101984,3.94671,2533.8,2533.5,0.7734]
[1729813102206,0.07287974,2533.6,2533.5,0.7734]
[1729813102417,3.94671,2533.8,2533.5,2.00929479]
[1729813102722,0.07287974,2533.6,2533.5,2.00929479]
[1729813103153,3.94671,2533.8,2533.5,2.00929479]
[1729813103350,0.07290481,2533.7,2533.5,2.00929479]
[1729813103553,3.94671,2533.8,2533.5,2.08822888]
[1729813103750,0.07287681,2533.7,2533.5,2.08822888]
[1729813104061,3.94671,2533.8,2533.6,0.84827362]
[1729813104226,0.07285174,2533.6,2533.5,2.08822888]
[1729813104424,3.94671,2533.8,2533.5,2.08822888]
[1729813104751,3.94658,2533.9,2533.5,2.08822888]
[1729813105132,0.07290188,2533.8,2533.5,2.00929479]
[1729813105719,0.07290188,2533.8,2533.5,2.0882289]
[1729813106967,0.07290188,2533.8,2533.5,2.00929479]
[1729813107268,0.07290188,2533.8,2533.5,0.7734]
[1729813108752,0.07290188,2533.8,2533.5,0.85233416]
[1729813110074,4.01961188,2533.8,2533.5,0.7734]
[1729813117173,0.07290188,2533.8,2533.5,0.7734]
[1729813123274,4.01955188,2533.8,2533.5,0.7734]
[1729813123478,3.94665,2533.8,2533.5,0.7734]
[1729813123672,0.07285181,2533.7,2533.5,0.7734]
[1729813123993,3.94665,2533.8,2533.5,0.7734]
[1729813124163,0.07285181,2533.7,2533.5,0.7734]
[1729813124359,3.94665,2533.8,2533.5,0.7734]
[1729813124588,0.07285181,2533.7,2533.5,0.7734]
[1729813124897,3.94665,2533.8,2533.5,0.7734]
[1729813125059,0.07282674,2533.6,2533.5,0.7734]
[1729813125262,3.94665,2533.8,2533.5,0.7734]
[1729813125463,0.07282674,2533.6,2533.5,0.7734]
[1729813125984,3.94665,2533.8,2533.5,0.7734]
[1729813126172,0.07285181,2533.7,2533.5,0.7734]
[1729813126370,3.94665,2533.8,2533.5,0.7734]
[1729813126695,0.07285181,2533.7,2533.5,1.60116262]
[1729813127068,3.94665,2533.8,2533.5,1.60116262]
[1729813127276,0.07282674,2533.6,2533.5,1.60116262]
[1729813127798,3.94665,2533.8,2533.5,1.60116262]
[1729813127995,0.07285181,2533.7,2533.5,1.60116262]
[1729813128166,3.94665,2533.8,2533.5,1.60116262]
[1729813128367,0.07285181,2533.7,2533.5,1.60116262]
[1729813128711,4.76725,2533.8,2533.5,1.60116262]
[1729813128994,3.94706,2533.6,2533.4,0.82776262]
[1729813129301,3.94706,2533.6,2533.3,2.01213058]
[1729813129302,0.07303035,2533.5,2533.3,0.82776262]
[1729813130194,3.94706,2533.6,2533.3,0.82776262]
[1729813131400,3.94708,2533.6,2533.4,0.82776262]
[1729813131581,4.02015635,2533.5,2533.3,0.82776262]
[1729813131770,4.02015635,2533.5,2533.4,8.72226262]
[1729813132102,0.07301635,2533.5,2533.4,7.8945]
[1729813132306,0.07301635,2533.5,2533.4,8.72226262]
[1729813133681,4.79391635,2533.5,2533.4,7.8945]
[1729813134286,4.79391635,2533.5,2533.4,8.72226262]
[1729813134497,4.79391635,2533.5,2533.4,7.8945]
[1729813134697,4.79391635,2533.5,2533.4,8.72226262]
[1729813134982,4.79391635,2533.5,2533.4,7.8945]
[1729813137010,4.79391635,2533.5,2533.4,8.72226262]
[1729813137617,4.79391635,2533.5,2533.4,7.8945]
[1729813139181,5.82995345,2533.5,2533.4,7.8945]
[1729813139382,7.44944812,2533.5,2533.4,7.8945]
[1729813142021,5.82995345,2533.5,2533.4,7.8945]
[1729813142187,7.44944812,2533.5,2533.4,7.8945]
[1729813142389,5.82995345,2533.5,2533.4,7.8945]
[1729813142586,7.44944812,2533.5,2533.4,7.8945]
[1729813142896,5.82995345,2533.5,2533.4,7.8945]
[1729813143111,4.79391635,2533.5,2533.4,7.8945]
[1729813156029,6.41341102,2533.5,2533.4,7.8945]
[1729813157202,9.42341102,2533.5,2533.4,7.8945]
[1729813188617,4.02011635,2533.5,2533.4,8.706]
[1729813188835,4.02011635,2533.5,2533.4,9.5766]
[1729813189124,5.63961102,2533.5,2533.4,9.5766]
[1729813189753,4.02011635,2533.5,2533.4,9.5766]
[1729813190142,5.63961102,2533.5,2533.4,9.5766]
[1729813192334,5.63961102,2533.5,2533.4,8.706]
[1729813195153,5.63961102,2533.5,2533.4,7.8945]
[1729813204043,4.02011635,2533.5,2533.4,7.8945]
[1729813204243,4.02011635,2533.5,2533.4,8.6791]
[1729813205278,5.63961102,2533.5,2533.4,8.6791]
[1729813213318,5.63961102,2533.5,2533.4,7.8945]
[1729813214011,4.02011635,2533.5,2533.4,7.8945]
[1729813216013,5.63961102,2533.5,2533.4,7.8945]
[1729813216223,6.67796812,2533.5,2533.4,7.8945]
[1729813216379,7.47496812,2533.5,2533.4,7.8945]
[1729813216581,10.47496812,2533.5,2533.4,7.8945]
[1729813224407,11.02496812,2533.5,2533.4,7.8945]
[1729813229154,8.63961102,2533.5,2533.4,7.8945]
[1729813229515,5.63961102,2533.5,2533.4,7.8945]
[1729813229845,4.02011635,2533.5,2533.4,7.8945]
[1729813230553,5.63961102,2533.5,2533.4,7.8945]
[1729813230761,4.02011635,2533.5,2533.4,7.8945]
[1729813231321,5.63961102,2533.5,2533.4,7.8945]
[1729813231948,5.66585671,2533.5,2533.4,7.8945]
[1729813234874,4.04636204,2533.5,2533.4,7.8945]
[1729813235036,5.66585671,2533.5,2533.4,8.76258]
[1729813235673,4.04636204,2533.5,2533.4,8.76258]
[1729813235842,4.04636204,2533.5,2533.4,9.54888]
[1729813238875,0.09926204,2533.5,2533.4,11.16837467]
[1729813239265,3.94694,2533.7,2533.5,0.8239]
[1729813239465,3.94694,2533.7,2533.6,1.94449747]
[1729813240764,3.94694,2533.7,2533.6,1.12059747]
[1729813240765,5.56643467,2533.7,2533.6,1.12059747]
[1729813241086,3.9471,2533.5,2533.4,9.58648]
[1729813241848,5.56659467,2533.5,2533.4,9.58648]
[1729813242048,3.9471,2533.5,2533.4,8.7184]
[1729813243046,5.56659467,2533.5,2533.4,8.7184]
[1729813243284,5.56659467,2533.5,2533.4,7.8945]
[1729813245799,3.9471,2533.5,2533.4,7.8945]
[1729813245998,5.56659467,2533.5,2533.4,7.8945]
[1729813246392,3.9471,2533.5,2533.4,7.8945]
[1729813250978,4.04661446,2533.5,2533.4,7.8945]
[1729813257272,5.66610913,2533.5,2533.4,7.8945]
[1729813257638,4.04661446,2533.5,2533.4,7.8945]
[1729813265976,6.70467704,2533.5,2533.4,7.8945]
[1729813266184,7.50147704,2533.5,2533.4,7.8945]
[1729813268785,10.50147704,2533.5,2533.4,7.8945]
[1729813270553,10.51147704,2533.5,2533.4,7.8945]
[1729813281598,9.71467704,2533.5,2533.4,7.8945]
[1729813300348,8.67610913,2533.5,2533.4,7.8945]
[1729813320483,7.05661446,2533.5,2533.4,7.8945]
[1729813321492,7.04661446,2533.5,2533.4,8.6947]
[1729813321785,8.66610913,2533.5,2533.4,8.6947]
[1729813322595,7.04661446,2533.5,2533.4,8.6947]
[1729813322804,4.04661446,2533.5,2533.4,9.56417]
[1729813322980,0.09951446,2533.5,2533.4,9.56417]
[1729813323179,4.04661446,2533.5,2533.4,9.56417]
[1729813326361,0.09951446,2533.5,2533.4,9.56417]
[1729813326763,3.94684,2533.7,2533.4,8.76397]
[1729813326967,3.94684,2533.7,2533.6,0.8261]
[1729813329777,5.56599467,2533.9,2533.6,0.8261]
[1729813329980,3.94665,2533.8,2533.6,0.8261]
[1729813331707,3.9465,2533.9,2533.6,0.8261]
[1729813331865,9.51258467,2533.9,2533.6,0.8261]
[1729813332280,5.56617467,2533.8,2533.6,0.8261]
[1729813333907,1.61949467,2533.8,2533.6,0.8261]
[1729813334208,3.94679,2533.7,2533.6,0.8261]
[1729813334408,3.94679,2533.7,2533.6,1.88894165]
[1729813337078,5.56613467,2533.8,2533.6,1.88894165]
[1729813341027,0.08628491,2533.7,2533.6,1.88894165]
[1729813341326,5.56613467,2533.8,2533.6,1.88894165]
[1729813341511,0.08625824,2533.7,2533.6,1.88894165]
[1729813341828,5.56613467,2533.8,2533.6,1.88894165]
[1729813342123,0.08547158,2533.7,2533.6,1.88894165]
[1729813342525,5.56613467,2533.8,2533.6,1.88894165]
[1729813342728,1.70496625,2533.7,2533.6,1.88894165]
[1729813343624,0.08547158,2533.7,2533.6,1.88894165]
[1729813343918,9.51291467,2533.8,2533.6,1.88894165]
[1729813344222,0.08554658,2533.7,2533.6,1.88894165]
[1729813344530,1.61949467,2533.7,2533.6,1.88894165]
[1729813344831,1.70504251,2533.7,2533.6,1.88894165]
[1729813345034,0.08554784,2533.7,2533.6,1.88894165]
[1729813345321,9.51291467,2533.8,2533.6,1.88894165]
[1729813345529,0.08554784,2533.7,2533.6,1.88894165]
[1729813345823,9.51291467,2533.8,2533.6,1.88894165]
[1729813346121,0.08554315,2533.7,2533.6,1.88894165]
[1729813346920,9.51291467,2533.8,2533.6,1.88894165]
[1729813347121,0.08554315,2533.7,2533.6,1.88894165]
[1729813347500,5.56613467,2533.8,2533.6,1.88894165]
[1729813347801,0.08554315,2533.7,2533.6,1.88894165]
[1729813348101,9.51286467,2533.8,2533.6,1.88894165]
[1729813348300,0.08550566,2533.7,2533.6,1.88894165]
[1729813348739,9.51286467,2533.8,2533.6,1.88894165]
[1729813349026,0.08550566,2533.7,2533.6,1.88894165]
[1729813349228,9.51286467,2533.8,2533.6,1.88894165]
[1729813349445,1.70500033,2533.7,2533.6,1.88894165]
[1729813349625,0.08550566,2533.7,2533.6,1.88894165]
[1729813349938,9.51286467,2533.8,2533.6,1.88894165]
[1729813350135,1.70500033,2533.7,2533.6,1.88894165]
[1729813350517,0.08550566,2533.7,2533.6,1.88894165]
[1729813351228,9.51286467,2533.8,2533.6,1.88894165]
[1729813351432,0.08550726,2533.7,2533.6,0.8261]
[1729813351608,9.51286467,2533.8,2533.6,0.8261]
[1729813351808,0.08540908,2533.7,2533.6,0.8261]
[1729813352036,9.51286467,2533.8,2533.6,0.8261]
[1729813352230,0.08541083,2533.7,2533.6,0.8261]
[1729813352422,1.61949467,2533.7,2533.6,0.8261]
[1729813352624,1.70491194,2533.7,2533.6,0.8261]
[1729813353120,0.08541727,2533.7,2533.6,0.8261]
[1729813353647,0.08544302,2533.7,2533.6,0.8261]
[1729813353828,9.51286467,2533.8,2533.6,0.8261]
[1729813354028,0.08544946,2533.7,2533.6,0.8261]
[1729813354251,3.94664,2533.8,2533.6,1.69816]
[1729813354405,0.08544946,2533.7,2533.6,1.69816]
[1729813354737,5.56613467,2533.8,2533.6,1.69816]
[1729813354943,0.08546234,2533.7,2533.6,1.69816]
[1729813355247,5.56613467,2533.8,2533.6,1.69816]
[1729813355442,0.08546234,2533.7,2533.6,1.69816]
[1729813355748,5.56628467,2533.7,2533.6,1.69816]
[1729813355913,5.65175345,2533.7,2533.6,0.8261]
[1729813356306,5.65175345,2533.7,2533.4,8.7149]
[1729813356720,5.56659467,2533.5,2533.4,8.7149]
[1729813357120,4.0325236,2533.5,2533.4,8.7149]
[1729813357619,5.65201827,2533.5,2533.4,8.7149]
[1729813358016,5.65201827,2533.5,2533.4,7.8945]
[1729813359335,6.6119151,2533.5,2533.4,7.8945]
[1729813360014,7.4414151,2533.5,2533.4,7.8945]
[1729813372496,6.48151827,2533.5,2533.4,7.8945]
[1729813376034,5.65201827,2533.5,2533.4,7.8945]
[1729813388138,4.0325236,2533.5,2533.4,7.8945]
[1729813388298,5.65201827,2533.5,2533.4,7.8945]
[1729813388641,4.0325236,2533.5,2533.4,7.8945]
[1729813388859,0.0854236,2533.5,2533.4,8.76285]
[1729813389001,0.0854236,2533.5,2533.4,9.55815]
[1729813389199,3.94691,2533.7,2533.5,0.7953]
[1729813389431,3.94691,2533.7,2533.5,0.87423421]
[1729813389812,3.94691,2533.7,2533.5,0.7953]
[1729813390022,3.94691,2533.7,2533.6,0.955815]
[1729813390838,5.56640467,2533.7,2533.6,0.955815]
[1729813391143,3.94695,2533.6,2533.5,0.7953]
[1729813391337,5.56644467,2533.6,2533.5,0.7953]
[1729813396721,3.94695,2533.6,2533.5,0.7953]
[1729813397449,1.61949467,2533.7,2533.5,0.7953]
[1729813397628,5.56622467,2533.8,2533.6,0.955815]
[1729813398018,0.08532772,2533.7,2533.6,1.751115]
[1729813398352,7.89286,2534.0,2533.6,1.751115]
[1729813398543,7.89286,2534.0,2533.7,0.73966332]
[1729813398544,3.94642,2534.0,2533.7,0.73966332]
[1729813398748,3.94642,2534.0,2533.8,0.7953]
[1729813398941,9.51233467,2534.0,2533.8,8.6886]
[1729813399357,3.94648,2533.9,2533.8,8.6886]
[1729813399654,3.94648,2533.9,2533.8,9.72700783]
[1729813400657,3.94642,2534.0,2533.8,9.72700783]
[1729813401169,4.03188278,2533.9,2533.8,9.72700783]
[1729813403562,0.08540278,2533.9,2533.8,9.72700783]
[1729813404780,5.56572467,2534.1,2533.8,9.72700783]
[1729813404942,5.56572467,2534.1,2533.9,0.97270078]
[1729813405143,1.61949467,2534.0,2533.9,0.97270078]
[1729813405343,5.56572467,2534.1,2533.9,0.97270078]
[1729813406146,1.61949467,2534.0,2533.9,0.97270078]
[1729813407070,5.56572467,2534.1,2533.9,0.97270078]
[1729813407491,1.61949467,2534.0,2533.9,0.97270078]
[1729813408395,5.56572467,2534.1,2533.9,0.97270078]
[1729813408997,1.61949467,2534.1,2533.9,1.05162176]
[1729813409195,5.56560467,2534.2,2534.0,1.07786296]
[1729813409353,3.94611,2534.2,2534.1,0.8029]
[1729813410195,5.56560467,2534.2,2534.1,0.8029]
[1729813412194,3.94611,2534.2,2534.1,0.8029]
[1729813412495,5.56560467,2534.2,2534.1,0.8029]
[1729813412699,3.94611,2534.2,2534.1,0.8029]
[1729813413072,3.94579,2534.4,2534.1,0.88181877]
[1729813413383,3.94579,2534.4,2534.1,0.8029]
[1729813414461,5.56528467,2534.4,2534.1,0.8029]
[1729813414766,3.94579,2534.4,2534.1,0.8029]
[1729813415285,5.56528467,2534.4,2534.1,0.8029]
[1729813416119,0.08290742,2534.3,2534.1,0.8029]
[1729813418120,0.08290742,2534.3,2534.2,0.42893518]
[1729813418274,5.56504467,2534.5,2534.2,0.42893518]
[1729813418890,4.02588322,2534.4,2534.2,0.42893518]
[1729813420416,4.02588322,2534.4,2534.2,0.35002576]
[1729813420916,4.02588322,2534.4,2534.2,0.42893599]
[1729813422018,0.08017322,2534.4,2534.2,0.42893599]
[1729813422221,4.02587322,2534.4,2534.3,0.28513307]
[1729813422434,4.02587322,2534.4,2534.2,0.42893599]
[1729813424207,5.64536789,2534.4,2534.2,0.35002576]
[1729813425339,5.56535467,2534.3,2534.2,0.35002576]
[1729813425542,5.56535467,2534.3,2534.1,0.8029]
[1729813425717,5.64559942,2534.3,2534.1,0.8029]
[1729813426320,4.02610475,2534.3,2534.1,0.8029]
[1729813426524,5.64559942,2534.3,2534.1,0.8029]
[1729813426846,4.02610475,2534.3,2534.1,0.8029]
[1729813430256,5.56550467,2534.2,2533.8,8.6984]
[1729813430422,3.94635,2534.0,2533.9,0.07891777]
[1729813430949,4.02652439,2534.0,2533.9,0.07891777]
[1729813431310,0.08017439,2534.0,2533.9,0.07891777]
[1729813432813,0.08017439,2534.0,2533.8,9.65086217]
[1729813433446,0.08017439,2534.0,2533.9,0.96508622]
[1729813435244,0.08017439,2534.0,2533.8,9.65086217]
[1729813436424,0.08017439,2534.0,2533.9,0.07891938]
[1729813438018,0.08017439,2534.0,2533.8,9.65086217]
[1729813442149,0.08017439,2534.0,2533.9,0.07891938]
[1729813442314,3.94602,2534.2,2533.9,0.07891938]
[1729813442518,0.0758174,2534.1,2533.9,0.07891938]
[1729813444457,0.0758174,2534.1,2533.9,1.5291987]
[1729813447162,0.0758174,2534.1,2533.9,1.45027932]
[1729813448172,4.0220574,2534.1,2533.9,1.45027932]
[1729813448351,6.42475207,2534.1,2533.8,9.65086217]
[1729813448550,4.8052574,2534.1,2533.8,9.65086217]
[1729813448864,4.8052574,2534.1,2533.8,10.47708384]
[1729813449176,4.8052574,2534.1,2533.8,8.84576217]
[1729813449351,10.37104207,2534.1,2533.8,8.84576217]
[1729813449676,6.42475207,2534.1,2533.8,8.84576217]
[1729813449975,4.8052574,2534.1,2533.8,8.84576217]
[1729813450142,4.8052574,2534.1,2533.8,9.67198384]
[1729813450786,5.56592467,2534.0,2533.8,7.8933]
[1729813451147,0.07587706,2533.9,2533.8,7.8933]
[1729813460166,4.02235706,2533.9,2533.8,7.8933]
[1729813460576,5.64185173,2533.9,2533.8,7.8933]
[1729813460904,4.02235706,2533.9,2533.8,7.8933]
[1729813463770,0.07587706,2533.9,2533.8,7.8933]
[1729813463974,0.07587706,2533.9,2533.8,9.39700063]
[1729813464482,0.07587706,2533.9,2533.8,7.8933]
[1729813471933,4.02235706,2533.9,2533.8,7.8933]
[1729813476421,6.43235173,2533.9,2533.8,7.8933]
[1729813499128,4.81285706,2533.9,2533.8,7.8933]
[1729813501872,4.02235706,2533.9,2533.8,7.8933]
[1729813502173,0.07587706,2533.9,2533.8,11.14373467]
[1729813502473,0.764,2534.5,2533.8,9.52424]
[1729813502474,3.94617,2534.1,2533.8,9.52424]
[1729813502652,0.07271392,2533.9,2533.8,8.6584]
[1729813502835,0.07271392,2533.9,2533.8,7.8933]
[1729813502836,3.94648,2533.9,2533.8,7.8933]
[1729813503163,4.01912184,2533.9,2533.8,7.8933]
[1729813506259,5.99812184,2533.9,2533.8,7.8933]
[1729813510539,7.61761651,2533.9,2533.8,7.8933]
[1729813510738,8.85590116,2533.9,2533.8,7.8933]
[1729813510967,5.99812184,2533.9,2533.8,7.8933]
[1729813512144,7.61761651,2533.9,2533.8,7.8933]
[1729813512682,5.99812184,2533.9,2533.8,7.8933]
[1729813514257,7.61761651,2533.9,2533.8,7.8933]
[1729813515353,5.99812184,2533.9,2533.8,7.8933]
[1729813516782,7.61761651,2533.9,2533.8,7.8933]
[1729813522473,9.53711316,2533.9,2533.8,7.8933]
[1729813537832,11.15660783,2533.9,2533.8,7.8933]
[1729813538877,9.53711316,2533.9,2533.8,7.8933]
[1729813539127,11.15660783,2533.9,2533.8,7.8933]
[1729813539289,9.53711316,2533.9,2533.8,7.8933]
[1729813551512,11.15660783,2533.9,2533.8,7.8933]
[1729813554159,14.15660783,2533.9,2533.8,7.8933]
[1729813554358,14.70660783,2533.9,2533.8,2e-05]
[1729813554516,3.94757,2533.2,2533.1,0.7614]
[1729813554721,5.56706467,2533.2,2533.1,0.7614]
[1729813555031,5.63924481,2533.2,2533.1,0.7614]
[1729813567966,4.01975014,2533.2,2533.1,0.7614]
[1729813568747,1.69167481,2533.2,2533.1,0.7614]
[1729813569366,0.07218014,2533.2,2533.1,0.7614]
[1729813569548,5.56706467,2533.2,2533.1,0.7614]
[1729813569743,5.63900504,2533.2,2533.1,0.7614]
[1729813570058,4.01951037,2533.2,2533.1,0.7614]
[1729813570449,5.63900504,2533.2,2533.1,0.7614]
[1729813571482,4.01951037,2533.2,2533.1,0.7614]
[1729813573038,5.63900504,2533.2,2533.1,0.7614]
[1729813575181,5.63900504,2533.2,2532.9,0.7614]
[1729813575344,1.61949467,2533.0,2532.9,0.7614]
[1729813575869,1.68884456,2533.0,2532.9,0.7614]
[1729813576591,5.63672456,2533.0,2532.9,0.7614]
[1729813577579,4.01722989,2533.0,2532.9,0.7614]
[1729813577781,5.63672456,2533.0,2532.9,0.7614]
[1729813579486,3.94817,2532.9,2532.6,1.58762167]
[1729813579651,1.68879761,2532.8,2532.6,1.58762167]
[1729813579956,1.68879761,2532.8,2532.6,0.7614]
[1729813582371,0.06930294,2532.8,2532.6,0.7614]
[1729813582572,1.68879761,2532.8,2532.6,0.7614]
[1729813583940,0.06930294,2532.8,2532.6,0.7614]
[1729813585307,0.06930294,2532.8,2532.6,0.84036118]
[1729813585508,0.06930294,2532.8,2532.7,4.75765]
[1729813585816,3.94753,2533.3,2532.9,0.8093]
[1729813585817,5.56702467,2533.3,2532.9,0.8093]
[1729813586310,5.56702467,2533.3,2533.0,0.07894938]
[1729813587011,1.61949467,2533.2,2533.0,0.07894938]
[1729813587174,1.61949467,2533.2,2532.9,0.88825044]
[1729813587812,5.56702467,2533.3,2532.9,0.88825044]
[1729813587990,1.61949467,2533.2,2532.9,0.8093]
[1729813588626,1.61949467,2533.1,2532.9,0.8093]
[1729813590692,3.94765,2533.2,2532.9,0.8093]
[1729813590897,1.61949467,2533.1,2532.9,0.8093]
[1729813594023,5.56714467,2533.2,2532.9,0.8093]
[1729813594397,3.94773,2533.1,2532.9,0.8093]
[1729813596093,0.0691478,2533.0,2532.9,0.8093]
[1729813597417,0.0691478,2533.0,2532.9,0.88825239]
[1729813597934,0.0691478,2533.0,2532.9,1.4545348]
[1729813598227,7.89507,2533.3,2532.9,2.28075647]
[1729813598389,0.0691478,2533.0,2532.9,2.28075647]
[1729813598586,3.9476,2533.2,2532.9,2.28075647]
[1729813598967,3.9476,2533.2,2533.0,0.3520089]
[1729813600326,3.94788,2533.0,2532.9,1.63552167]
[1729813600524,3.94788,2533.0,2532.9,0.8093]
[1729813600827,5.56722467,2533.1,2532.9,0.8093]
[1729813601628,3.94773,2533.1,2532.9,0.8093]
[1729813602094,3.94773,2533.1,2532.9,1.63552167]
[1729813603131,3.94773,2533.1,2532.9,0.8093]
[1729813604126,3.94773,2533.1,2532.9,1.63552167]
[1729813604508,3.94773,2533.1,2532.9,0.8093]
[1729813605141,9.51506467,2533.1,2532.9,0.8093]
[1729813605346,3.94773,2533.1,2532.9,0.8093]
[1729813610835,3.94767,2533.2,2532.9,0.88825254]
[1729813611164,0.0691478,2533.0,2532.9,0.88825254]
[1729813611366,3.94767,2533.2,2532.9,0.88825254]
[1729813611569,0.0691478,2533.0,2532.9,0.88825254]
[1729813611727,3.94767,2533.2,2532.9,0.88825254]
[1729813611934,0.06917128,2533.1,2532.9,0.88825254]
[1729813612765,0.06917128,2533.1,2532.9,0.8093]
[1729813614002,0.06917128,2533.1,2532.9,0.88825108]
[1729813614965,0.06917128,2533.1,2532.9,0.8093]
[1729813615771,0.06917128,2533.1,2532.9,0.88825111]
[1729813615979,4.01690128,2533.1,2532.9,0.88825111]
[1729813618572,0.06917128,2533.1,2532.9,0.88825111]
[1729813621975,0.06917128,2533.1,2532.9,0.8093]
[1729813622163,4.01693128,2533.1,2532.9,0.8093]
[1729813622363,5.63642595,2533.1,2532.9,0.8093]
[1729813622742,4.01693128,2533.1,2532.9,0.8093]
[1729813622941,4.01693128,2533.1,2532.8,0.82622167]
[1729813623943,0.06917128,2533.1,2532.9,0.07895277]
[1729813624279,0.06917128,2533.1,2532.9,0.8034]
[1729813625541,0.06917128,2533.1,2532.9,0.8823513]
[1729813626181,0.06917128,2533.1,2532.9,0.8034]
[1729813626980,4.01697128,2533.1,2532.8,0.82622167]
[1729813627156,5.63646595,2533.1,2532.8,0.82622167]
[1729813627358,4.01697128,2533.1,2532.8,0.82622167]
[1729813627859,5.63646595,2533.1,2532.8,0.82622167]
[1729813628361,4.01697128,2533.1,2532.8,0.82622167]
[1729813634885,3.94789,2533.0,2532.8,0.82622167]
[1729813635383,0.0691247,2532.9,2532.8,0.82622167]
[1729813635603,0.0691247,2532.9,2532.7,1.23933251]
[1729813636391,0.0691247,2532.9,2532.8,1.23933251]
[1729813636974,4.0171647,2532.9,2532.8,1.23933251]
[1729813637174,0.0691247,2532.9,2532.8,1.23933251]
[1729813637379,3.94788,2533.0,2532.8,1.23933251]
[1729813637553,3.94788,2533.0,2532.9,0.82832512]
[1729813638182,3.94788,2533.0,2532.9,0.82832512]
[1729813640979,4.01698895,2533.0,2532.9,0.82832512]
[1729813648299,0.06910895,2533.0,2532.9,1.65292512]
[1729813648511,0.06910895,2533.0,2532.9,5.89457738]
[1729813648693,2.42979467,2533.4,2532.9,5.81562675]
[1729813648887,0.06875545,2533.0,2532.9,1.86758675]
[1729813649093,6.37705467,2533.4,2532.9,5.81562675]
[1729813649299,0.06645811,2533.0,2532.9,5.81562675]
[1729813649801,5.56698467,2533.3,2532.9,1.03926163]
[1729813650007,1.61949467,2533.3,2533.0,0.82847539]
[1729813651790,1.61949467,2533.3,2533.0,1.92879534]